{"text_format":"3","workbook":"xlsx","n_sheets":3,"sheets":["COVER SHEET","Price Declaration ","TRANSACTION FEE OFFSITE "],"not_rendered":{"images":2,"defined_names":26},"read":"whole","date_system":"1900"}

{"sheet":"COVER SHEET","index":0,"n_rows":45,"n_cols":10,"rows_kept":45,"hidden":true,"merged":[[1,9,1,11],[13,0,13,12],[16,4,16,11],[18,4,18,11],[20,4,20,11],[23,0,23,12],[25,0,25,12],[26,0,26,12],[27,0,27,12],[28,0,28,12],[29,0,29,12],[30,0,30,12],[31,0,31,12],[32,0,32,12],[33,0,33,12],[34,0,34,12],[35,0,35,12],[36,0,36,12],[37,0,37,12],[38,0,38,12],[39,0,39,12],[40,0,40,12],[41,0,41,12],[42,0,42,12],[43,0,43,12],[44,0,44,12],[45,0,45,12],[46,0,46,12]]}
[]
[{"$nulls":9},"ANNEXURE A3"]
{"$rows_empty":11}
["PRICING SUBMISSION"]
[]
[]
["RFP NO:",{"$nulls":3},"DSBD TMS 001/2024"]
[]
["RFP NAME:",{"$nulls":3},"THE PROVISION OF TRAVEL MANAGEMENT SERVICES FOR A PERIOD OF 36 MONTHS"]
[]
["BIDDER NAME"]
[]
[]
["PRICE INSTRUCTIONS"]
[]
["1.  STRUCTURE OF THE TENDER"]
["This spreadsheet for RFP/BID DBSD.TMS 001/2024 contains the financial response templates for the bid. The bid pricing submission instructions in this document must be read in conjunction with instructions or notes embedded in the various tabs of spreadsheet (Pricing Schedule)."]
[]
["2.  GENERAL INSTRUCTIONS FOR COMPLETING THE PRICING SCHEDULE TEMPLATES"]
["2.1  Tender submission format"]
["2.1.1 Bidders must submit  a paper copy and an electronic copy of the Pricing Schedule. In the event of a discrepancy, the\n         paper copy will prevail."]
["2.1.2 Bidders must sign all paper copies of their Pricing Schedule."]
["2.1.3 Bidders must complete and submit the templates attached ,which is transactional fee model offsite \n"]
["2.1.4 Bidders must reference RFP/BID main document section 14.2 for current travel volumes."]
["2.2  Input spreadsheets"]
["2.2.1 The Pricing Schedule templates are contained within the one (1) Excel Workbook"]
["2.2.2 Bidders must not  make any changes to the spreadsheets or change the formatting of the Pricing Schedule."]
["2.2.3 Cells are formatted to automatically indicate South African Rands, ordinary text fields and percentages (%) where \n         applicable."]
["2.2.4 Input cells FOR BIDDERS are highlighted in  GREEN. The Bidder must complete all the relevant input cells for the bid. \n        No other cells must be changed in any way whatsoever."]
["2.2.4 Input cells FOR THE TENDERING INSTITUTION are highlighted in  ORANGE. The Tendering Institution must complete all the relevant input cells for the bid. No other cells must be changed in any way whatsoever."]
[]
[]
["2.3  Currency and VAT"]
["2.3.1 All Bidders’ pricing must be quoted in South African Rands (ZAR)."]
["2.3.3 The Pricing Schedule template is designed such that VAT will be calculated on Bidders’ input pricing; therefore Bidders \n         must complete the templates with unit prices excluding VAT."]

{"sheet":"Price Declaration ","index":1,"n_rows":56,"n_cols":5,"rows_kept":56,"hidden":true,"merged":[[7,0,7,1],[7,2,7,8],[8,0,8,1],[8,2,8,8],[9,0,9,1],[9,2,9,8],[12,0,12,8],[15,0,15,8],[16,0,16,8],[17,0,17,8],[18,0,18,1],[18,2,18,3],[18,4,18,6],[18,7,18,8],[19,0,19,8],[20,0,20,8],[23,0,23,8],[24,0,24,1],[24,2,24,3],[24,4,24,6],[24,7,24,8],[25,0,25,8],[26,0,26,8],[29,0,29,8],[30,0,30,1],[30,2,30,3],[30,4,30,6],[30,7,30,8],[31,0,31,8],[32,0,32,8],[35,0,35,8],[36,0,36,1],[36,2,36,3],[36,4,36,6],[36,7,36,8],[37,0,37,8],[38,0,38,8],[39,0,39,8],[40,0,40,8],[41,0,41,8],[42,0,42,8],[43,0,43,8],[44,0,44,8],[45,0,45,8],[46,0,46,2],[46,4,46,8],[47,0,47,8],[48,0,48,8],[49,0,49,8],[50,0,50,8],[51,0,51,8],[52,0,52,8],[53,0,53,8],[54,0,54,8],[55,0,55,8],[56,0,56,8]]}
{"$rows_empty":7}
["RFP NO:",null,{"$f":"'COVER SHEET'!$E$17","v":"DSBD TMS 001/2024"}]
["RFP NAME:",null,{"$f":"'COVER SHEET'!$E$19","v":"THE PROVISION OF TRAVEL MANAGEMENT SERVICES FOR A PERIOD OF 36 MONTHS"}]
["BIDDER NAME",null,{"$f":"'COVER SHEET'!$E$21","v":0}]
[]
[]
["Price Declaration"]
["Dear Sir/Madam,"]
[]
["Having read through and examined the Request For Proposal (RFP) Document, the General Conditions, The Requirement and all other Annexures to the RFP Document, we offer to provide ON-SITE / OFF-SITE travel management service to the Department of Small Business Development at the following total amounts (including VAT)"]
[]
["Template 1: Transaction Fee (On-Site)"]
[{"$f":"#REF!","v":{"$error":"#REF!"}},null,"(incl. VAT)"]
["In words:"]
[]
[]
[]
["Template 2: Transaction Fee (Off-Site)"]
[{"$f":"'TRANSACTION FEE OFFSITE '!H54","v":0},null,"(incl. VAT)"]
["In words:"]
[]
[]
[]
["Template 3: Management Fee (On-Site)"]
[{"$f":"#REF!","v":{"$error":"#REF!"}},null,"(incl. VAT)"]
["In words:"]
[]
[]
[]
["Template 4: Management Fee (Off-Site)"]
[{"$f":"#REF!","v":{"$error":"#REF!"}},null,"(incl. VAT)"]
["In words:"]
[]
[]
["We undertake to hold this offer open for acceptance for a period of 180 days from the date of submission of offers. We further undertake that upon final acceptance of our offer, we will commence with the provision of service when required to do so by the  Department of Small Business Development "]
[]
["We understand that the Department of Small Business Development is not bound to accept the lowest or any offer and that we must bear all costs which we have incurred in connection with preparing and submitting this bid."]
[]
["We hereby undertake for the period during which this bid remains open for acceptance not to divulge to any persons, other than the persons to which the bid is submitted, any information relating to the submission of this bid or the details therein except where such is necessary for the submission of this bid."]
[]
["Signature",{"$nulls":3},"Date"]
["Print name of signatory: ……………………………………………………………………………. "]
["Designation: ………………………………………………………………………………………….  "]
[]
["FOR AND ON BEHALF OF: COMPANY NAME"]
[]
["Tel No: ………………………………………."]
["Fax No: ………………………………………."]
["Cell No: ………………………………………."]
["Email:…………………………………………."]

{"sheet":"TRANSACTION FEE OFFSITE ","index":2,"n_rows":83,"n_cols":18,"rows_kept":83,"merged":[[0,5,2,16],[3,5,3,16],[6,5,6,16],[7,5,7,16],[8,5,8,16],[10,0,10,17],[12,0,12,8],[12,9,12,17],[13,2,13,7],[13,9,13,14],[52,0,52,1],[53,0,53,6],[53,7,53,17],[55,0,55,1],[55,6,55,7],[55,13,55,14],[56,6,56,17],[57,6,57,17],[69,0,69,8],[69,9,69,17],[70,2,70,7],[70,9,70,14],[81,0,81,1],[82,0,82,6],[82,7,82,17]]}
[{"$nulls":5},"TEMPLATE 2: TRANSACTION FEE MODEL"]
[]
[]
[{"$nulls":5},"OFF-SITE SERVICES"]
[]
[]
["RFP NO:",{"$nulls":4},"DSBD TMS 001/2024"]
["RFP NAME:",{"$nulls":4},{"$f":"'COVER SHEET'!$E19","v":"THE PROVISION OF TRAVEL MANAGEMENT SERVICES FOR A PERIOD OF 36 MONTHS"}]
["BIDDER NAME"]
[]
["1.1  TRANSACTION FEES "]
[]
["TRADITIONAL BOOKINGS",{"$nulls":8},"ONLINE BOOKINGS"]
["ITEM","Transaction Type","Unit price ",{"$nulls":6},"Unit price "]
[{"$nulls":5},"Estimate Volume ","Unit Price\n(excl VAT)","Unit Price\n(incl VAT)","TOTAL Price\n(incl VAT)",{"$nulls":6},"Unit Price\n(excl VAT)","Unit Price\n(incl VAT)","TOTAL Price\n(incl VAT)"]
[1,"Air Travel – International",{"$nulls":3},{"v":2416,"d":"2,416.00"},null,{"$f":"G16*1.15","v":0},{"$f":"H16*F16","v":0},{"$nulls":7},{"$f":"P16*1.15","v":0},{"$f":"Q16*F16","v":0}]
[2,"Air Travel – Regional",{"$nulls":3},{"v":66,"d":"66.00"},null,{"$f":"G17*1.15","v":0},{"$f":"H17*F17","v":0},{"$nulls":7},{"$f":"P17*1.15","v":0},0]
[3,"Air Travel – Domestic ",{"$nulls":3},{"v":3145,"d":"3,145.00"},null,0,0,{"$nulls":7},0,0]
[4,"Air Travel – International (Re-issue)",{"$nulls":3},{"v":200,"d":"200.00"},null,0,0,{"$nulls":7},0,0]
[5,"Air Travel – Regional (Re-issue)",{"$nulls":3},{"v":200,"d":"200.00"},null,0,0,{"$nulls":7},0,0]
[6,"Air Travel – Domestic (Re-issue)",{"$nulls":3},{"v":200,"d":"200.00"},null,0,0,{"$nulls":7},0,0]
[7,"Refunds – Air Domestic",{"$nulls":3},{"v":100,"d":"100.00"},null,0,0,{"$nulls":7},0,0]
[8,"Refunds – Air Regional",{"$nulls":3},{"v":60,"d":"60.00"},null,0,0,{"$nulls":7},0,0]
[9,"Refunds – Air International",{"$nulls":3},{"v":60,"d":"60.00"},null,0,0,{"$nulls":7},0,0]
[10,"Car Rental – Domestic",{"$nulls":3},{"v":200,"d":"200.00"},null,0,0,{"$nulls":7},0,0]
[11,"Car Rental – Regional ",{"$nulls":3},{"v":50,"d":"50.00"},null,0,0,{"$nulls":7},0,0]
[12,"Car Rental – International",{"$nulls":3},{"v":70,"d":"70.00"},null,0,0,{"$nulls":7},0,0]
[13,"Transfers/Shuttle – Domestic",{"$nulls":3},{"v":723,"d":"723.00"},null,0,0,{"$nulls":7},0,{"$f":"Q28*F28","v":0}]
[14,"Transfers/Shuttle – Regional",{"$nulls":3},{"v":30,"d":"30.00"},null,0,0,{"$nulls":7},0,0]
[15,"Transfers/Shuttle – International",{"$nulls":3},{"v":30,"d":"30.00"},null,0,0,{"$nulls":7},0,0]
[16,"Accommodation – Domestic",{"$nulls":3},{"v":4366,"d":"4,366.00"},null,0,0,{"$nulls":7},{"$f":"P31*1.15","v":0},0]
[17,"Accommodation – Regional",{"$nulls":3},{"v":600,"d":"600.00"},null,0,0,{"$nulls":7},{"$f":"P32*1.15","v":0},{"$f":"Q32*F32","v":0}]
[18,"Accommodation – International",{"$nulls":3},{"v":600,"d":"600.00"},null,0,0,{"$nulls":7},0,{"$f":"Q33*F33","v":0}]
[19,"Bus/Coach Bookings",{"$nulls":3},{"v":22,"d":"22.00"},null,0,0,{"$nulls":7},{"$f":"P34*1.15","v":0},0]
[20,"Train - Regional & International",{"$nulls":3},{"v":22,"d":"22.00"},null,0,0,{"$nulls":7},{"$f":"P35*1.15","v":0},0]
[null,"Conferences/Events ",{"$nulls":3},{"v":55,"d":"55.00"},null,0,0,{"$nulls":7},{"$f":"P36*1.15","v":0},0]
[21,"Visa Assistance \n(Provision of documents and advice)",{"$nulls":3},{"v":66,"d":"66.00"},null,0,0,{"$nulls":7},{"$f":"P37*1.15","v":0},0]
[22,"Courier services for travel documentation (visa & passports)",{"$nulls":3},{"v":100,"d":"100.00"},null,0,0,{"$nulls":7},{"$f":"P38*1.15","v":0},0]
[23,"SMS Notifications",{"$nulls":3},{"v":1000,"d":"1,000.00"},null,0,0,{"$nulls":7},{"$f":"P39*1.15","v":0},0]
[null,"Insurance",{"$nulls":3},{"v":200,"d":"200.00"},null,0,0,{"$nulls":7},{"$f":"P40*1.15","v":0},0]
[null,"Forex",{"$nulls":3},{"v":69,"d":"69.00"},null,0,0,{"$nulls":7},{"$f":"P41*1.15","v":0},0]
[null,"City Tax ",{"$nulls":3},{"v":88,"d":"88.00"},null,0,0,{"$nulls":7},{"$f":"P42*1.15","v":0},0]
[24,"Parking bookings",{"$nulls":3},{"v":200,"d":"200.00"},null,0,0,{"$nulls":7},{"$f":"P43*1.15","v":0},0]
[25,"Cancellations",{"$nulls":3},{"v":100,"d":"100.00"},null,0,0,{"$nulls":7},{"$f":"P44*1.15","v":0},0]
[26,"Changes to bookings",{"$nulls":3},{"v":200,"d":"200.00"},null,0,0,{"$nulls":7},{"$f":"P45*1.15","v":0},0]
[null,"Tourism Leavy ",{"$nulls":3},{"v":60,"d":"60.00"},null,0,0,{"$nulls":7},{"$f":"P46*1.15","v":0},0]
[27,"After Hours Services",{"$nulls":3},{"v":450,"d":"450.00"},null,0,0,{"$nulls":7},{"$f":"P47*1.15","v":0},0]
[28,"Additional Ad-hoc Reports (per report)",{"$nulls":3},{"v":6,"d":"6.00"},null,0,0,{"$nulls":7},{"$f":"P48*1.15","v":0},0]
[29,"Customised Reports (per report) Monthly ",{"$nulls":3},{"v":13,"d":"13.00"},null,0,0,{"$nulls":7},{"$f":"P49*1.15","v":0},0]
[30,"Travel Lodge card Reconciliation Monthly ",{"$nulls":3},{"v":13,"d":"13.00"},null,0,0,{"$nulls":7},{"$f":"P50*1.15","v":0},0]
[31,"Debtors Account Reconciliation Monthly ",{"$nulls":3},{"v":13,"d":"13.00"},null,0,0,{"$nulls":7},{"$f":"P51*1.15","v":0},0]
[null,"Total",{"$nulls":3},{"$f":"SUM(F16:F80)","v":0},null,null,{"$f":"SUM(I16:I51)","v":0},{"$nulls":3},{"$f":"SUM(M16:M80)","v":0},{"$nulls":4},{"$f":"SUM(R16:R51)","v":0}]
["Percentage Split between Online Booking  and Traditional Booking",{"$nulls":5},"Percentage Traditional",{"v":0.5,"d":"50.00%"},{"$f":"I52*H53","v":0},{"$nulls":6},"Percentage Online",{"v":0.5,"d":"50.00%"},{"$f":"R52*Q53","v":0}]
["PRICE THAT WILL BE USED FOR EVALUATION PURPOSES",{"$nulls":6},{"$f":"I53+R53","v":0}]
[]
["1.2  CONFERENCE TRANSACTION FEE"]
["Item","Description",{"$nulls":3},"Percentage Fee","Comment"]
[1,"Conference Transaction Fee (as a % of the Total turnover of the event)"]
{"$rows_empty":11}
["TRADITIONAL BOOKINGS",{"$nulls":8},"ONLINE BOOKINGS"]
["ITEM","Transaction Type","Unit price including vat ",{"$nulls":6},"Unit price including vat ",{"$nulls":5},"Unit Price\n(excl VAT)","Unit Price\n(incl VAT)","TOTAL Price\n(incl VAT)"]
[{"$nulls":6},"Unit Price\n(excl VAT)","Unit Price\n(incl VAT)","TOTAL Price\n(incl VAT)"]
[1,"Other (Specify)",{"$nulls":3},{"v":100,"d":"100.00"},null,{"$f":"G73*1.15","v":0},{"$f":"H73*F73","v":0},{"$nulls":7},{"$f":"P73*1.15","v":0},{"$f":"Q73*F73","v":0}]
[2,"Other (Specify)",{"$nulls":3},{"v":100,"d":"100.00"},null,{"$f":"G74*1.15","v":0},{"$f":"H74*F74","v":0},{"$nulls":7},{"$f":"P74*1.15","v":0},{"$f":"Q74*F74","v":0}]
[3,"Other (Specify)",{"$nulls":3},{"v":100,"d":"100.00"},null,0,0,{"$nulls":7},0,0]
[4,"Other (Specify)",{"$nulls":3},{"v":100,"d":"100.00"},null,0,0,{"$nulls":7},0,0]
[5,"Other (Specify)",{"$nulls":3},{"v":100,"d":"100.00"},null,0,0,{"$nulls":7},0,0]
[6,"Other (Specify)",{"$nulls":3},{"v":100,"d":"100.00"},null,0,0,{"$nulls":7},0,0]
[7,"Other (Specify)",{"$nulls":3},{"v":100,"d":"100.00"},null,0,0,{"$nulls":7},0,0]
[8,"Other (Specify)",{"$nulls":3},{"v":100,"d":"100.00"},null,0,0,{"$nulls":7},0,0]
[null,"Total",{"$nulls":3},{"$f":"SUM(F48:F107)","v":0},null,null,{"$f":"SUM(I73:I80)","v":0},{"$nulls":3},{"$f":"SUM(M48:M107)","v":0},{"$nulls":4},{"$f":"SUM(R73:R80)","v":0}]
["Percentage Split between Online Booking  and Traditional Booking",{"$nulls":5},"Percentage Traditional",{"v":0.5,"d":"50.00%"},{"$f":"I81*H82","v":0},{"$nulls":6},"Percentage Online",{"v":0.5,"d":"50.00%"},{"$f":"R81*Q82","v":0}]
["PRICE THAT WILL BE USED FOR EVALUATION PURPOSES",{"$nulls":6},{"$f":"I82+R82","v":0}]